Cogmind - Beta 12 *** ADVENTURER MODE // 2023.09.13 @ 20:26:06 Player: Trantor Result: Destroyed by as-92939 with Assembled Blade Performance ------------- Evolutions (0) 0 Regions Visited (2) 400 Robots Destroyed (26) 130 Value Destroyed (689) 689 Prototype IDs (5) 100 Alien Tech Used (0) 0 Bonus (0) 0 TOTAL SCORE: 1319 Bonus ------- None Cogmind --------- Core Integrity 0/250 Matter 213/300 Energy 85/100 System Corruption 0% Temperature Cool (0) Movement Core (450) Ox8 Location -10/Mines Parts ------- > --- POWER (1) -------- (None) > --- PROPULSION (2) --- (None) > --- UTILITY (2) ------ Improved Heat Sink Large Storage Unit > --- WEAPON (2) ------- Particle Cannon Hammer > --- INVENTORY (15) --- Ion Engine VTOL Module Large Matter Pod (150) Structural Scanner Terrain Scanner Tractor Beam EM Pulse Gun Particle Cannon Particle Cannon Particle Cannon Light Cannon Rocket Launcher Mining Laser Peak State ------------ > --- POWER ------------ Ion Engine > --- PROPULSION ------- Aluminum Leg Aluminum Leg > --- UTILITY ---------- Improved Heat Sink Large Storage Unit > --- WEAPON ----------- Particle Cannon Hammer > --- INVENTORY -------- Ion Engine Aluminum Leg VTOL Module Large Matter Pod Structural Scanner Core Shielding Tractor Beam EM Pulse Gun Particle Cannon Particle Cannon Particle Cannon Light Cannon Grenade Launcher Rocket Launcher Mining Laser [Rating: 12] Favorites ----------- Power Ion Engine Engine Ion Engine Propulsion Aluminum Leg Leg Aluminum Leg Utility Large Storage Unit Device Heat Sink Storage Large Storage Unit Processor Signal Interpreter Weapon Particle Cannon Energy Gun Small Laser Energy Cannon Particle Cannon Ballistic Gun Assault Rifle Ballistic Cannon Light Cannon Launcher Grenade Launcher Special Weapon Mining Laser Impact Weapon Hammer Build | -11 -10 -10 ------- Run | Jun Mat Min Slots Evolved . | . . . Power . | . . . Propulsion . | . . . Utility . | . . . Weapon . | . . . Parts Attached 39 | . 22 17 Power 4 | . 3 1 Engine 4 | . 3 1 Core . | . . . Reactor . | . . . Propulsion 10 | . 6 4 Treads . | . . . Leg 10 | . 6 4 Wheel . | . . . Hover . | . . . Flight . | . . . Utility 9 | . 6 3 Device 7 | . 4 3 Storage 1 | . 1 . Processor 1 | . 1 . Hackware . | . . . Protection . | . . . Artifact . | . . . Weapon 16 | . 7 9 Energy Gun 2 | . 2 . Energy Cannon 5 | . 3 2 Ballistic Gun . | . . . Ballistic Cannon 2 | . 1 1 Launcher 3 | . . 3 Special Weapon 1 | . . 1 Impact Weapon 3 | . 1 2 Slashing Weapon . | . . . Piercing Weapon . | . . . Special Melee Weapon . | . . . Unidentified Prototypes . | . . . Parts Lost 5 | . . 5 Power 1 | . . 1 Propulsion 3 | . . 3 Utility . | . . . Weapon 1 | . . 1 Highest Loss Streak 3 | . . 3 To Critical Strikes . | . . . Average Slot Usage (%) 98 | . 98 98 Engine 14 | . 14 14 Leg 27 | . 27 27 Device 10 | . 9 14 Storage 14 | . 14 14 Processor 1 | . 2 . Energy Gun 3 | . 4 . Energy Cannon 16 | . 17 12 Ballistic Gun 2 | . 3 . Impact Weapon 4 | . 1 12 Naked Turns . | . . . Heaviest Build 34 | 11 34 33 Greatest Support 20 | 20 20 20 Greatest Overweight (x) 3 | . 3 3 Average Overweight (x) . | . . 1 Largest Inventory Capacity 15 | . 15 15 Average Capacity 14 | . 14 15 Most Carried 15 | . 15 15 Average Carried 13 | . 13 14 Final Capacity 15 | 8 15 15 Final Carried 15 | 6 15 13 Class Distribution -------------------- 54% | Scavenger-Mutant 45% | Mutant Dominant Class ---------------- Scavenger-Mutant | -10/Materials Mutant | -10/Mines Resources | -11 -10 -10 ----------- Run | Jun Mat Min Matter Collected 1059 | 200 579 280 Remotely . | . . . Salvage Created 926 | . 702 224 Parts 51 | . 35 16 Haulers Intercepted 2 | . 2 . Recyclers Shooed . | . . . Parts Field Recycled . | . . . Retrieved Matter . | . . . Parts Self-Destructed . | . . . Prevented . | . . . Kills | -11 -10 -10 ------- Run | Jun Mat Min Combat Hostiles Destroyed 22 | . 11 11 Guns 3 | . 3 . Cannons 14 | . 8 6 AOE 4 | . . 4 Classes Destroyed 8 | . 5 3 Worker 1 | . 1 . Builder 1 | . . 1 Hauler 2 | . 2 . Recycler 1 | . 1 . Watcher 3 | . 3 . Swarmer 3 | . . 3 Grunt 15 | . 11 4 Assembled 4 | . . 4 Best Kill Streak 5 | . 5 3 Combat Bots Only 4 | . 4 3 Max Kills in Single Turn 2 | . 1 2 Gunslinging . | . . . Exploded 2 | . . 2 Melee . | . . . Uniques/NPCs Destroyed . | . . . Combat | -11 -10 -10 -------- Run | Jun Mat Min Damage Taken 1172 | . 343 829 Core 273 | . 71 202 Absorbed by Shields . | . . . Core Remaining (%) 100 | 100 . . Volleys Fired 69 | . 33 36 Largest 2 | . 2 2 Hottest 168 | . 136 168 Shots Fired 104 | . 63 41 Gun 29 | . 29 . Cannon 67 | . 34 33 Launcher 5 | . . 5 Special 3 | . . 3 Kinetic 23 | . 23 . Thermal 76 | . 40 36 Explosive 5 | . . 5 Electromagnetic . | . . . Robot Hit Streak 20 | . 20 8 Robot Miss Streak 3 | . 3 2 Penetration Max . | . . . Secondary Targets . | . . . Shots Hit Robots 65 | . 43 22 Core Hits 41 | . 24 17 Critical Kills 1 | . . 1 Critical Parts Destroyed . | . . . Critical Strikes 5 | . 4 1 Burn 4 | . 4 . Meltdown 1 | . . 1 Melee Attacks 7 | . 4 3 Impact 7 | . 4 3 Slashing . | . . . Piercing . | . . . Sneak Attacks . | . . . Combat Hostiles . | . . . Follow-up Attacks . | . . . Damage Inflicted 1408 | . 742 666 Guns 315 | . 315 . Cannons 822 | . 427 395 Explosions 190 | . . 190 Melee 81 | . . 81 Ramming . | . . . Kinetic 275 | . 275 . Thermal 862 | . 467 395 Explosive 190 | . . 190 Electromagnetic . | . . . Impact 81 | . . 81 Slashing . | . . . Piercing . | . . . Highest Corruption . | . . . Average Corruption . | . . . Corruption Purged . | . . . Corruption Blocked . | . . . Overload Shots . | . . . Overflow Damage 2 | . . 2 Projectiles 2 | . . 2 Explosions . | . . . Melee . | . . . Knockbacks 4 | . 2 2 Impact 2 | . . 2 Kinetic 1 | . 1 . Secondary 1 | . 1 . Self-Inflicted Damage . | . . . Shots . | . . . Rammed . | . . . Targets Rammed . | . . . Kicked . | . . . Crushed . | . . . Highest Temperature 216 | . 216 55 Average Temperature 40 | . 50 19 Received Heat Transfer 243 | . 201 42 Siege Activations . | . . . Robots Corrupted . | . . . Combat Hostiles . | . . . Parts Fried . | . . . Impact Corruptions . | . . . Robots Melted 1 | . . 1 Combat Hostiles 1 | . . 1 Parts Melted 7 | . 4 3 Heat Transferred 1912 | . 1209 703 Parts Sabotaged . | . . . Parts Stolen . | . . . Parts Stripped . | . . . Power Chain Reactions . | . . . Missiles Intercepted . | . . . Alert | -11 -10 -10 ------- Run | Jun Mat Min Peak Influence 209 | . 209 186 Initial . | . . . Average 43 | . 43 42 Maximum Alert Level 1 | . 1 . Low Security (%) 96 | . 95 100 Level 1 3 | . 4 . Level 2 . | . . . Level 3 . | . . . Level 4 . | . . . Level 5 . | . . . High Security . | . . . Max Security . | . . . Squads Dispatched 1 | . 1 . Investigation 1 | . 1 . Extermination . | . . . Reinforcement . | . . . Assault . | . . . Garrison . | . . . Intercept . | . . . Searches Triggered . | . . . Construction Impeded . | . . . Haulers Reinforced . | . . . Active Scanning Responses . | . . . Cargo Convoy Interrupts . | . . . Stealth | -11 -10 -10 --------- Run | Jun Mat Min Distress Signals 1 | . 1 . Communications Jammed . | . . . Distress Signals . | . . . Times Spotted 46 | . 16 30 Peak Tracking Total 16 | . 4 16 Tactical Retreats 2 | . . 2 Traps | -11 -10 -10 ------- Run | Jun Mat Min Traps Triggered 5 | . 5 . Indirectly . | . . . Trap Hack Attempts . | . . . Triggered . | . . . Disarmed . | . . . Reprogrammed . | . . . Reused . | . . . Traps Extracted . | . . . Installed . | . . . Triggered . | . . . Machines | -11 -10 -10 ---------- Run | Jun Mat Min Machines Disabled 2 | . . 2 Max in Single Turn 1 | . . 1 Machines Repaired . | . . . Machines Sabotaged . | . . . Overloaded Fab Kills . | . . . Hacking | -11 -10 -10 --------- Run | Jun Mat Min Machines Accessed 7 | . 7 . Terminals 6 | . 6 . Fabricators . | . . . Repair Stations . | . . . Recycling Units 1 | . 1 . Scanalyzers . | . . . Garrison Access . | . . . Total Hacks 24 | . 24 . Successful 13 | . 13 . Failed 10 | . 10 . Catastrophic . | . . . Database Lockouts 1 | . 1 . Manual 14 | . 14 . Terminals 23 | . 23 . Fabricators . | . . . Repair Stations . | . . . Recycling Units 1 | . 1 . Scanalyzers . | . . . Garrison Access . | . . . Terminal Hacks 7 | . 7 . Part Schematic 1 | . 1 . Robot Analysis 2 | . 2 . Prototype ID Bank 3 | . 3 . Hauler Manifests 1 | . 1 . Fabricator Hacks . | . . . Repair Station Hacks . | . . . Recycling Unit Hacks 1 | . 1 . Report Inventory 1 | . 1 . Scanalyzer . | . . . Garrison Access Hacks . | . . . Unauthorized Hacks 5 | . 5 . Terminals 5 | . 5 . Botnet 5 | . 5 . Fabricators . | . . . Repair Stations . | . . . Recycling Units . | . . . Scanalyzers . | . . . Garrison Access . | . . . Data Cores Recovered . | . . . Used . | . . . Hacking Detections 7 | . 7 . Full Trace Events 1 | . 1 . Feedback Events . | . . . Feedback Blocked . | . . . Robot Schematics Acquired . | . . . Robots Built . | . . . Authchips . | . . . Time . | . . . Total Robot Build Rating . | . . . Part Schematics Acquired 1 | . 1 . Parts Built . | . . . Authchips . | . . . Time . | . . . Total Part Build Rating . | . . . Parts Repaired . | . . . Time . | . . . Parts Recycled . | . . . Recycled Matter . | . . . Retrieved Matter . | . . . Retrieved Components . | . . . Parts Scanalyzed . | . . . Part Schematics Acquired . | . . . Parts Damaged . | . . . Bothacking | -11 -10 -10 ------------ Run | Jun Mat Min Used RIF Installer . | . . . Robots Hacked . | . . . Non-combat . | . . . Combat . | . . . Robot Hacks Applied . | . . . Relay Couplers Released . | . . . Fabnet Peak Effective % . | . . . Robots Rewired . | . . . Allies Hacked . | . . . Hacks Repelled . | . . . Allies | -11 -10 -10 -------- Run | Jun Mat Min Total Allies . | . . . Largest Group . | . . . Highest-Rated Group . | . . . Highest-Rated Ally . | . . . Total Orders . | . . . Ally Attacks . | . . . Total Damage . | . . . Kills . | . . . Allies Corrupted . | . . . Allies Melted . | . . . Intel | -11 -10 -10 ------- Run | Jun Mat Min Robot Analysis Total 2 | . 2 . Derelict Logs Recovered . | . . . Drone Launches . | . . . Drone Recoveries . | . . . Exploration | -11 -10 -10 ------------- Run | Jun Mat Min Turns Passed 2908 | . 2119 789 Spaces Moved 1359 | 1 1013 345 Core . | . . . Treads . | . . . Legs 1359 | 1 1013 345 Wheels . | . . . Hover . | . . . Flight . | . . . Fastest Speed 120 | 120 120 190 Average Speed 186 | 120 184 192 Slowest Speed 330 | 120 330 330 Overloaded Moves . | . . . Propulsion Burnouts . | . . . Robots Hopped . | . . . Cave-ins Triggered . | . . . Exploration Rate (%) 51 | 2 99 52 Regions Visited 2 Branch Regions 1 Pre-discovered Areas . | . . . Known Exits Taken 1 | . 1 . Unknown Exits Taken 1 | 1 . . Scrap Searched 3 | . . 3 Spaces Dug 10 | . 2 8 Terrain Destroyed 44 | . 2 42 Melee 2 | . 2 . Projectile 8 | . . 8 AOE 34 | . . 34 Terrain Rammed . | . . . Walls Destroyed . | . . . Machines Disabled . | . . . Actions | -11 -10 -10 --------- Run | Jun Mat Min Total 1619 | . 1199 420 Wait 86 | . 79 7 Move 1357 | . 1012 345 Hop . | . . . Pick Up 22 | . 18 4 Fast Attach 11 | . 11 . Attach 2 | . . 2 Detach 7 | . 7 . Swap 26 | . 11 15 Drop 32 | . 24 8 Fire 69 | . 33 36 Melee 7 | . 4 3 Ram . | . . . Kick . | . . . Crush . | . . . Escape Stasis . | . . . Rewire . | . . . Trap . | . . . Miscellaneous . | . . . Route ------- -11/Junkyard -10/Materials (discovered 4 exits: [*Mat x3] / *Min) -10/Mines (discovered 1 exit: [*Mat]) History --------- Turn | Location | Event 1 | -11/Junkyard | Discovered new exit (range 0) 1 | -11/Junkyard | Entered Materials 228 | -10/Materials | Discovered new exit (range 16) 268 | -10/Materials | Central database locked down 285 | -10/Materials | Identified exit to Mines 316 | -10/Materials | Build established: Mutant 770 | -10/Materials | Discovered new exit (range 5) 914 | -10/Materials | Build established: Scavenger-Mutant 1183 | -10/Materials | Discovered new exit (range 16) 1431 | -10/Materials | Discovered new exit (range 15) 2120 | -10/Materials | Entered Mines 2206 | -10/Mines | Discovered new exit (range 12) 2213 | -10/Mines | Received a Rocket Launcher from a helpful Derelict 2518 | -10/Mines | Build established: Mutant 2832 | -10/Mines | Assembled infested the area 2848 | -10/Mines | Core integrity fell below 50% 2890 | -10/Mines | Core integrity fell below 20% 2909 | -10/Mines | Destroyed by as-92939 with Assembled Blade Last Messages --------------- 02871_ U-05 Engineer lays Concrete. 02873_ The unstable cave ceiling collapses. 02873_ U-05 Engineer builds a Wall. 02873_ as-77909 destroyed. 02873_ as-52280 destroyed. 02875_ as-12796 destroyed. 02877_ The unstable cave ceiling collapses. 02877_ U-05 Engineer lays Concrete. 02880_ U-05 Engineer builds a Wall. 02886_ The unstable cave ceiling collapses. 02886_ U-05 Engineer destroyed. 02889_ Core Extractor disabled. 02891_ The unstable cave ceiling collapses. 02891_ Aluminum Leg destroyed. 02891_ as-66825 destroyed. 02895_ The unstable cave ceiling collapses. 02905_ Destroyed Asb. Hover Unit. 02907_ as-50545 destroyed. 02907_ Aluminum Leg destroyed. 02908_ Ion Engine destroyed. Map ----- +----------------------------------------------------+ | | | | | | | | | | | ?????????????????????????????????????????????????? | | ?????????????????#?????#?????????????????????????? | | ?????????????????????????????????????????????????? | | ??????????????#?????????#????????????????????????? | | ???????????????#????????####?#####???????????????? | | ???????????????????????## ### #???????????????? | | ??????????????#??####?## #???????????????? | | ?????????###????## ## ##???????????????? | | ??????#### ?### # ####????????????????? | | ??????# # # # " = #????????????????? | | ????? ## # # %"=%!#????????????????? | | ???? = ## ###??????????????? | | ????*% % ### #??????????????? | | ???? # # * #### #????####??????? | | ????? a# #?#### #??### ##???### | | ?????? #### ! #????# #### ##?## | | ???????????????# ##????# < ### | | ??????????????# # ####### | | ??????????????# ######% "" T####### | | ?????????????### ?????#%a"" #####??#### ## | | ???????????????# ?????#@""" ### ##???## ##? | | ??????????????# ??????# ## #????### #?? | | ????????????? #??#???# ## ##?????## #?? | | ???????????? #??????? #?# ##?????# ### | | ??????????? ##????????#######?# ###???# # | | ??????????? ##???????????????????# ##??# | | ????????????????????? ???????????## #### | | ??????????????????????????????????## ## | | ?????????????????????????????????### ## | | ?????????????????????????????????# ### | | ?????????????????????????????????# #?? | | ?????????????????????????????????# ##### #?? | | ????????????????????????????????# ????# ##?? | | ???????????????????????????????# ????## [####### | | ???????????????????????????????# ??????# #??# | | ??????????????????????????????? ??????# #??# ## | | ?????????????????????????????? ??????# #??#!## | | ????????????????????????????? ???##### #??#=## | | ???????????????????????????? #??## #??# ## | | ???????????????????????????? ###???# ####=## | | ???????????????????????????????????# ## [*! | | ??????????????????????????????????## ## """ | | ?????????????????????????????????## ## """ | | ????????????????????????????????## ### """ | | ???????????????????????????????## #?# | +----------------------------------------------------+ Best States ------------- Heat Dissipation 39 Energy Generation 10 Energy Capacity 250 Matter Stores 300 Matter Capacity 300 Sight Range 16 Terrain Scan Range 14 Terrain Scan Density 10 Resistance: KI 20 Resistance: TH 20 Resistance: EX 20 Resistance: EM 20 Resistance: I 20 Resistance: S 20 Resistance: P 20 Evasion (%) 55 Offensive Hacking 10 Item Schematics ----------------- Hcp. Matter Pod | -10/Materials | Hacked Robot Schematics ------------------ None Fabricated ------------ Nothing Alien Tech Used ----------------- None Achievements -------------- None Challenges ------------ None Game ------ Seed DerelictDiametricDerivative Manual? 0 Play Time 00:36:53 Cumulative 200.6 hours Start 2023.09.13 @ 18:49:51 End 2023.09.13 @ 20:26:06 Sessions 2 Manual Loads 0 Difficulty Adventurer Special Mode None Game No. 109 Rogue 66 Adventurer 43 Explorer 0 Win Type - Total 1 Types 1/0/0/0/0/0/0/0/0 Lore% 57 Gallery% 57 Achievement% 55 Wizard Run 0 Options --------- ASCII 0 Keyboard 1 Movement Vi Keybinds 1 Fullscreen 2 Font 18/X11Bold Map View 76x50 Tactical HUD 1 Map Filters NONE Filters NONE Steam 1 RUN: b8b16666-9b3b-4bd9-b6dd-bf0efe79d14a